Cogmind - Beta 13 @@@ ROGUE MODE // 2024.03.31 @ 23:11:54 Player: kasra Result: Self-destructed Performance ------------- Evolutions (2) 1000 Regions Visited (5) 1000 Robots Destroyed (15) 75 Value Destroyed (366) 366 Prototype IDs (27) 540 Alien Tech Used (0) 0 Bonus (300) 300 TOTAL SCORE: 3281 Bonus ------- Aligned with FarCom 300 Cogmind --------- Core Integrity 343/550 Matter 292/300 Energy 16/100 System Corruption 0% Temperature Warm (117) Movement Flying (50) Location -8/Materials Parts ------- > --- POWER (1) -------- (None) > --- PROPULSION (4) --- Flying Fortress v7 > --- UTILITY (3) ------ Improved Heat Sink Melee Analysis Suite > --- WEAPON (3) ------- Improved EM Shotgun Hammer > --- INVENTORY (5) ---- Hacking Suite Light Assault Rifle Light Assault Rifle Light Assault Rifle Scythe Peak State ------------ > --- POWER ------------ (None) > --- PROPULSION ------- Flying Fortress v7 > --- UTILITY ---------- Thermal Generator Improved Heat Sink Melee Analysis Suite > --- WEAPON ----------- Improved EM Shotgun Shock Bomb Launcher Hammer > --- INVENTORY -------- Light Assault Rifle Light Assault Rifle Light Assault Rifle Light Assault Rifle [Rating: 48] Favorites ----------- Power Light Ion Engine Engine Light Ion Engine Power Core Light Nuclear Core Propulsion Aluminum Leg Leg Aluminum Leg Flight Unit Flying Fortress v7 Utility Structural Scanner Device Structural Scanner Storage Medium Matter Pod Processor Melee Analysis Suite Weapon Light Assault Rifle Energy Gun EM Pulse Gun Ballistic Gun Light Assault Rifle Launcher Shock Bomb Launcher Impact Weapon Hammer Build | -11 -10 -10 -10 -9 -8 ------- Run | Yrd Mat Min Exi Min Mat Slots Evolved 4 | . . . . . 4 Power . | . . . . . . Propulsion 2 | . . . . . 2 Utility 1 | . . . . . 1 Weapon 1 | . . . . . 1 Parts Attached 25 | 5 . 4 2 3 11 Power 4 | 1 . . . 2 1 Engine 3 | 1 . . . 1 1 Core 1 | . . . . 1 . Reactor . | . . . . . . Propulsion 5 | 2 . . 2 . 1 Treads . | . . . . . . Leg 4 | 2 . . 2 . . Wheel . | . . . . . . Hover . | . . . . . . Flight 1 | . . . . . 1 Utility 8 | . . 3 . 1 4 Device 6 | . . 2 . 1 3 Storage 1 | . . 1 . . . Processor 1 | . . . . . 1 Hackware . | . . . . . . Protection . | . . . . . . Artifact . | . . . . . . Weapon 8 | 2 . 1 . . 5 Energy Gun 2 | 1 . . . . 1 Energy Cannon . | . . . . . . Ballistic Gun 3 | 1 . 1 . . 1 Ballistic Cannon . | . . . . . . Launcher 2 | . . . . . 2 Special Weapon . | . . . . . . Impact Weapon 1 | . . . . . 1 Slashing Weapon . | . . . . . . Piercing Weapon . | . . . . . . Special Melee Weapon . | . . . . . . Unidentified Prototypes 2 | . . . . 1 1 Parts Lost 6 | . . . . 1 5 Power 1 | . . . . . 1 Propulsion . | . . . . . . Utility 3 | . . . . 1 2 Weapon 2 | . . . . . 2 Highest Loss Streak 3 | . . . . 1 3 To Critical Strikes . | . . . . . . Average Slot Usage (%) 90 | . 71 93 99 97 55 Engine 12 | . 14 14 14 13 2 Leg 23 | . 28 28 27 28 . Flight 1 | . . . . . 9 Device 22 | . . 14 28 25 14 Energy Gun 1 | . 14 2 . . 6 Ballistic Gun 24 | . 14 25 28 28 8 Impact Weapon 1 | . . . . . 8 Naked Turns . | . . . . . . Heaviest Build 19 | 6 6 8 7 8 19 Greatest Support 50 | 20 20 20 20 20 50 Greatest Overweight (x) 2 | . . . 2 . . Average Overweight (x) . | . . . . . . Largest Inventory Capacity 5 | 5 5 5 5 5 5 Average Capacity 5 | 5 5 5 5 5 5 Most Carried 5 | 1 4 5 5 5 5 Average Carried 3 | . 1 3 4 4 3 Final Capacity 5 | 5 5 5 5 5 5 Final Carried 5 | . 4 4 5 4 5 Class Distribution -------------------- 65% | Mutant 32% | Skirmisher Dominant Class ---------------- Mutant | -10/Materials Mutant | -10/Mines Mutant | -10/Exiles Skirmisher | -9/Mines Mutant | -8/Materials Resources | -11 -10 -10 -10 -9 -8 ----------- Run | Yrd Mat Min Exi Min Mat Matter Collected 570 | 256 4 23 . 125 162 Remotely . | . . . . . . Salvage Created 509 | 50 20 . . 132 307 Parts 36 | 4 2 . . 10 20 Haulers Intercepted 2 | . . . . . 2 Recyclers Shooed 1 | . . . . 1 . Parts Field Recycled . | . . . . . . Retrieved Matter . | . . . . . . Parts Self-Destructed . | . . . . . . Prevented . | . . . . . . Kills | -11 -10 -10 -10 -9 -8 ------- Run | Yrd Mat Min Exi Min Mat Combat Hostiles Destroyed 11 | 1 1 . . 3 6 Guns 9 | 1 1 . . 3 4 AOE 2 | . . . . . 2 Classes Destroyed 4 | 1 1 . . . 2 Worker 2 | . . . . . 2 Hauler 2 | . . . . . 2 Swarmer 4 | . 1 . . . 3 Grunt 7 | 1 . . . 3 3 Best Kill Streak 4 | 1 1 . . 1 4 Combat Bots Only 3 | 1 1 . . 1 3 Max Kills in Single Turn 2 | 1 1 . . 1 2 Gunslinging . | . . . . . . Exploded 1 | . . . . . 1 Melee . | . . . . . . Uniques/NPCs Destroyed . | . . . . . . Combat | -11 -10 -10 -10 -9 -8 -------- Run | Yrd Mat Min Exi Min Mat Hostile Shots Fired 200 | 7 6 . . 38 149 Missed 83 | 2 2 . . 17 62 Damage Taken 1579 | 54 37 . . 238 1250 Core 283 | 22 10 . . 44 207 Absorbed by Shields . | . . . . . . Core Remaining (%) 80 | 91 . . . 69 . Volleys Fired 63 | 6 4 . . 25 28 Largest 2 | 2 2 . . 2 2 Hottest 81 | 60 60 . . 40 81 Shots Fired 116 | 12 8 . . 50 46 Gun 110 | 12 8 . . 50 40 Cannon . | . . . . . . Launcher 6 | . . . . . 6 Special . | . . . . . . Kinetic 81 | 6 4 . . 50 21 Thermal . | . . . . . . Explosive 4 | . . . . . 4 Electromagnetic 31 | 6 4 . . . 21 Robot Hit Streak 7 | 5 7 . . 6 5 Robot Miss Streak 4 | 3 1 . . 4 4 Penetration Max . | . . . . . . Secondary Targets . | . . . . . . Shots Hit Robots 69 | 8 4 . . 28 29 Core Hits 38 | 2 2 . . 8 26 Critical Kills . | . . . . . . Critical Parts Destroyed . | . . . . . . Critical Strikes . | . . . . . . Melee Attacks 1 | . . . . . 1 Impact 1 | . . . . . 1 Slashing . | . . . . . . Piercing . | . . . . . . Sneak Attacks . | . . . . . . Combat Hostiles . | . . . . . . Follow-up Attacks . | . . . . . . Damage Inflicted 1362 | 84 37 . . 210 1031 Guns 672 | 84 37 . . 210 341 Cannons . | . . . . . . Explosions 658 | . . . . . 658 Melee 32 | . . . . . 32 Ramming . | . . . . . . Kinetic 364 | 32 15 . . 210 107 Thermal 68 | . . . . . 68 Explosive 509 | . . . . . 509 Electromagnetic 389 | 52 22 . . . 315 Impact 32 | . . . . . 32 Slashing . | . . . . . . Piercing . | . . . . . . Highest Corruption . | . . . . . . Average Corruption . | . . . . . . Corruption Purged . | . . . . . . Corruption Blocked . | . . . . . . Overload Shots . | . . . . . . Overflow Damage 7 | . . . . . 7 Projectiles . | . . . . . . Explosions 7 | . . . . . 7 Melee . | . . . . . . Knockbacks . | . . . . . . Impact . | . . . . . . Kinetic . | . . . . . . Secondary . | . . . . . . Self-Inflicted Damage 57 | . . . . . 57 Shots 3 | . . . . . 3 Rammed . | . . . . . . Targets Rammed . | . . . . . . Kicked . | . . . . . . Crushed . | . . . . . . Highest Temperature 134 | 64 40 . . 12 134 Average Temperature 29 | 28 25 . . 7 42 Received Heat Transfer 663 | 30 . . . 129 504 Siege Activations . | . . . . . . Robots Corrupted . | . . . . . . Combat Hostiles . | . . . . . . Parts Fried 2 | . . . . . 2 Impact Corruptions . | . . . . . . Robots Melted . | . . . . . . Combat Hostiles . | . . . . . . Parts Melted . | . . . . . . Heat Transferred 100 | . . . . . 100 Parts Sabotaged . | . . . . . . Parts Stolen . | . . . . . . Parts Stripped . | . . . . . . Power Chain Reactions 2 | . . . . . 2 Alert | -11 -10 -10 -10 -9 -8 ------- Run | Yrd Mat Min Exi Min Mat Peak Influence 389 | 20 78 30 . 90 389 Initial 35 | . 13 30 . . 35 Average 54 | 9 52 30 . 13 189 Maximum Alert Level 1 | . . . . . 1 Low Security (%) 93 | 100 100 100 . 100 66 Level 1 6 | . . . . . 33 Level 2 . | . . . . . . Level 3 . | . . . . . . Level 4 . | . . . . . . Level 5 . | . . . . . . High Security . | . . . . . . Max Security . | . . . . . . Squads Dispatched 3 | . 1 . . . 2 Investigation 1 | . . . . . 1 Extermination . | . . . . . . Reinforcement 2 | . 1 . . . 1 Assault . | . . . . . . Garrison . | . . . . . . Intercept . | . . . . . . Searches Triggered . | . . . . . . Construction Impeded 1 | . . . . . 1 Haulers Reinforced . | . . . . . . Active Scanning Responses . | . . . . . . Cargo Convoy Interrupts . | . . . . . . Stealth | -11 -10 -10 -10 -9 -8 --------- Run | Yrd Mat Min Exi Min Mat Distress Signals . | . . . . . . Communications Jammed . | . . . . . . Distress Signals . | . . . . . . Times Spotted 28 | 1 3 . . 5 19 Peak Tracking Total 9 | 1 3 . . 3 9 Tactical Retreats 4 | . 1 . . 1 2 Traps | -11 -10 -10 -10 -9 -8 ------- Run | Yrd Mat Min Exi Min Mat Traps Triggered . | . . . . . . Indirectly . | . . . . . . Trap Hack Attempts . | . . . . . . Triggered . | . . . . . . Disarmed . | . . . . . . Reprogrammed . | . . . . . . Reused . | . . . . . . Traps Extracted . | . . . . . . Installed . | . . . . . . Triggered 1 | . . . . . 1 Machines | -11 -10 -10 -10 -9 -8 ---------- Run | Yrd Mat Min Exi Min Mat Machines Disabled 3 | . . . . . 3 Max in Single Turn 1 | . . . . . 1 Machines Repaired . | . . . . . . Machines Dismantled . | . . . . . . Machines Sabotaged . | . . . . . . Overloaded Fab Kills . | . . . . . . Hacking | -11 -10 -10 -10 -9 -8 --------- Run | Yrd Mat Min Exi Min Mat Machines Accessed 10 | . 1 . 5 . 4 Terminals 2 | . . . . . 2 Fabricators . | . . . . . . Repair Stations . | . . . . . . Recycling Units 2 | . 1 . . . 1 Scanalyzers . | . . . . . . Garrison Access 1 | . . . . . 1 Total Hacks 47 | . 2 . 29 . 16 Successful 37 | . . . 29 . 8 Failed 10 | . 2 . . . 8 Catastrophic 2 | . . . . . 2 Database Lockouts . | . . . . . . Manual 3 | . . . 3 . . Terminals 8 | . . . . . 8 Fabricators . | . . . . . . Repair Stations . | . . . . . . Recycling Units 7 | . 2 . . . 5 Scanalyzers . | . . . . . . Garrison Access 3 | . . . . . 3 Terminal Hacks 33 | . . . 29 . 4 Record 31 | . . . 28 . 3 Prototype ID Bank 1 | . . . . . 1 Derelict Proto ID Bank 1 | . . . 1 . . Fabricator Hacks . | . . . . . . Repair Station Hacks . | . . . . . . Recycling Unit Hacks 3 | . . . . . 3 Process 1 | . . . . . 1 Retrieve Components 2 | . . . . . 2 Scanalyzer . | . . . . . . Garrison Access Hacks 1 | . . . . . 1 Unlock Access 1 | . . . . . 1 Unauthorized Hacks . | . . . . . . Terminals . | . . . . . . Fabricators . | . . . . . . Repair Stations . | . . . . . . Recycling Units . | . . . . . . Scanalyzers . | . . . . . . Garrison Access . | . . . . . . Data Cores Recovered . | . . . . . . Used . | . . . . . . Hacking Detections 4 | . . . . . 4 Full Trace Events 3 | . . . . . 3 Feedback Events . | . . . . . . Feedback Blocked . | . . . . . . Robot Schematics Acquired . | . . . . . . Robots Built . | . . . . . . Authchips . | . . . . . . Time . | . . . . . . Total Robot Build Rating . | . . . . . . Part Schematics Acquired . | . . . . . . Parts Built . | . . . . . . Authchips . | . . . . . . Time . | . . . . . . Total Part Build Rating . | . . . . . . Parts Repaired . | . . . . . . Time . | . . . . . . Parts Recycled . | . . . . . . Recycled Matter . | . . . . . . Retrieved Matter . | . . . . . . Retrieved Components 1 | . . . . . 1 Parts Scanalyzed . | . . . . . . Part Schematics Acquired . | . . . . . . Parts Damaged . | . . . . . . Bothacking | -11 -10 -10 -10 -9 -8 ------------ Run | Yrd Mat Min Exi Min Mat Used RIF Installer . | . . . . . . Robots Hacked . | . . . . . . Non-combat . | . . . . . . Combat . | . . . . . . Robot Hacks Applied . | . . . . . . Relay Couplers Released . | . . . . . . Fabnet Peak Effective % . | . . . . . . Robots Rewired . | . . . . . . Allies Hacked . | . . . . . . Hacks Repelled . | . . . . . . Allies | -11 -10 -10 -10 -9 -8 -------- Run | Yrd Mat Min Exi Min Mat Total Allies . | . . . . . . Largest Group . | . . . . . . Highest-Rated Group . | . . . . . . Highest-Rated Ally . | . . . . . . Total Orders . | . . . . . . Ally Attacks . | . . . . . . Total Damage . | . . . . . . Kills . | . . . . . . Allies Corrupted . | . . . . . . Allies Melted . | . . . . . . Intel | -11 -10 -10 -10 -9 -8 ------- Run | Yrd Mat Min Exi Min Mat Robot Analysis Total . | . . . . . . Derelict Logs Recovered 2 | . . . . 2 . Drone Launches . | . . . . . . Drone Recoveries . | . . . . . . Exploration | -11 -10 -10 -10 -9 -8 ------------- Run | Yrd Mat Min Exi Min Mat Turns Passed 2105 | 153 124 117 745 684 282 Spaces Moved 1773 | 118 91 91 612 503 358 Core 24 | 21 . . 3 . . Treads . | . . . . . . Legs 1391 | 97 91 91 609 503 . Wheels . | . . . . . . Hover . | . . . . . . Flight 358 | . . . . . 358 Fastest Speed 50 | 50 120 120 120 120 50 Average Speed 105 | 107 120 120 120 120 50 Slowest Speed 150 | 120 120 120 150 120 50 Overloaded Moves . | . . . . . . Propulsion Burnouts . | . . . . . . Robots Hopped . | . . . . . . Cave-ins Triggered . | . . . . . . Exploration Rate (%) 43 | 7 21 23 93 87 28 Regions Visited 5 Branch Regions 3 Pre-discovered Areas 1 | . . . . 1 . Known Exits Taken . | . . . . . . Unknown Exits Taken 5 | 1 1 1 1 1 . Scrap Searched 1 | . . 1 . . . Spaces Dug . | . . . . . . Terrain Destroyed 41 | . . . . . 41 Melee . | . . . . . . Projectile . | . . . . . . AOE 41 | . . . . . 41 Terrain Rammed . | . . . . . . Walls Destroyed . | . . . . . . Machines Disabled . | . . . . . . Actions | -11 -10 -10 -10 -9 -8 --------- Run | Yrd Mat Min Exi Min Mat Total 1919 | 133 98 101 624 544 419 Wait 13 | . . . 1 9 3 Move 1768 | 117 90 90 611 502 358 Hop . | . . . . . . Pick Up 31 | 5 4 4 4 2 12 Fast Attach . | . . . . . . Attach 20 | 5 . 3 2 1 9 Detach 3 | . . 1 . . 2 Swap 5 | . . 1 . 2 2 Drop 15 | . . 2 6 3 4 Fire 63 | 6 4 . . 25 28 Melee 1 | . . . . . 1 Ram . | . . . . . . Kick . | . . . . . . Crush . | . . . . . . Escape Stasis . | . . . . . . Rewire . | . . . . . . Trap . | . . . . . . Miscellaneous . | . . . . . . Route ------- -11/Scrapyard -10/Materials -10/Mines -10/Exiles (discovered 2 exits: [*Min x2]) -9/Mines (discovered 2 exits: *Mat x2) -8/Materials (discovered 1 exit: Gar) History --------- Turn | Location | Event 2 | -11/Scrapyard | Met Revision 17 60 | -11/Scrapyard | Discovered new exit (range 8) 154 | -11/Scrapyard | Entered Materials 231 | -10/Materials | Discovered new exit (range 14) 235 | -10/Materials | Met 8R-AWN 278 | -10/Materials | Entered Mines 280 | -10/Mines | Followed 8R-AWN into the Mines 321 | -10/Mines | Build established: Mutant 344 | -10/Mines | Found a damaged Exp. Sensor Array with a note attached 346 | -10/Mines | Found Prototype Device 391 | -10/Mines | Discovered new exit (range 5) 395 | -10/Mines | Entered Exiles 419 | -10/Exiles | Discovered new exit (range 14) 447 | -10/Exiles | Welcomed by 8R-AWN 471 | -10/Exiles | Met EX-HEX 526 | -10/Exiles | Met EX-DEC 557 | -10/Exiles | Visited The Gauntlet 806 | -10/Exiles | Met EX-BIN 941 | -10/Exiles | Aligned with FarCom system 943 | -10/Exiles | Given EX-Vault access code 980 | -10/Exiles | Opened EX-Vault 1002 | -10/Exiles | Found Flying Fortress v7 1042 | -10/Exiles | Warned to stay clear of 0b10 Research branches 1120 | -10/Exiles | Discovered new exit (range 10) 1140 | -10/Exiles | Left Exiles lab with Flying Fortress v7 1140 | -10/Exiles | Entered Mines 1141 | -9/Mines | Identified Exp. Sensor Array 1165 | -9/Mines | Learned 2 Materials zone layouts 1290 | -9/Mines | Learned location of Zion (-7) 1447 | -9/Mines | Build established: Skirmisher 1623 | -9/Mines | Discovered new exit (range 5) 1699 | -9/Mines | Discovered new exit (range 5) 1824 | -9/Mines | Entered Materials 1824 | -8/Materials | Evolved 4 slots: Propulsion x2, Utility x1, Weapon x1 1937 | -8/Materials | Identified exit to Garrison 2106 | -8/Materials | Self-destructed Last Messages --------------- Rocket Launcher destroyed. U-05 Engineer lays Concrete. Slug penetrates Wall. U-05 Engineer lays Concrete. Penetrated by Slug. U-05 Engineer lays Concrete. U-05 Engineer builds a Wall. U-05 Engineer lays Concrete. Slug penetrates Wall. Acquired 43 matter. U-05 Engineer lays Concrete. Acquired Scythe. Critical hit (Burn: +37). Penetrated by Slug. Wall collapses. U-05 Engineer lays Concrete. U-05 Engineer builds a Wall. U-05 Engineer lays Concrete. Penetrated by Slug. G-47 Trooper destroyed. Map ----- +----------------------------------------------------+ | " #?????????????????????????????????????????????? | | " #?????????????????????????????????????????????? | | " #?????????????????????????????????????????????? | | #?????????????????????????????????????????????? | | " #?????????????????????????????????????????????? | | " #????##########???????????????????????????????? | | " #????# #???????????????????????????????? | | #????# """" #???????????????????????????????? | | ######### """" #???????????????????????????????? | | # """" #???????????????????????????????? | | # #???????????????????????????????? | | # """" #???????????????????????????????? | | #### # """" #???????????????????????????????? | | #??# # """" #?????????o?????????????????????? | | #??# # #???????????????????????????????? | | #??# #####+######### #????????????????????????? | | #??# +????????????????????????? | | #??# #######???????????????????????????? | | #??# #???##########????????????????????? | | #??#######+####???# [ ###########??????????? | | #??????# = *#???# #?????????? | | #??????# = #???# ! # Y #?????????? | | + # """ #???# %=%* = #?????????? | | # # """[=#???# !%g%g !! #????????? | | # # """ #???# ! ] !%# ! #????????? | | # # #???# @ # #?????????? | | ###############???# #?????????? | | #?????????????????# u # ;h# ######?????????? | | #???????###############h###### ######???????????? | | #???????# ## +???????????? | | #???????# """"" ## ##### ######???????????? | | #???????# """"""""" + #???# #????????????????? | | #???????# """ """ ## #???# #????????????????? | | ####????# ## #####/######???????????? | | """#????# ## ## #???????????? | | >G"#????# ## #" !! #???????????? | | """#????#########+### "[[ ! #???????????? | | ####??????# [w[! ! #???????????? | | #?????????# [ ! #???????????? | | #?????????# = #???????????? | | #?????????# #T##### # = #???????????? | | #?????????# ###???### ### = #???????????? | | #?????????# #???????# #?###########???????????? | | ########### #??????? #???????????????????????? | | #??????## #???????????????????????? | | #???????#%#???????????????????????? | | #########*#???????????????????????? | | ########### ## ## #???????????????????????? | | #?????????# ## #???????????????????????? | | #?????????# #? #???????????????????????? | +----------------------------------------------------+ Best States ------------- Heat Dissipation 45 Energy Generation 14 Energy Capacity 160 Matter Stores 300 Matter Capacity 400 Sight Range 16 Robot Scan Range 20 Terrain Scan Density 10 Evasion (%) 60 Melee Accuracy 5 Item Schematics ----------------- None Robot Schematics ------------------ None Fabricated ------------ Nothing Alien Tech Used ----------------- None Achievements -------------- Loot Pinata One Hack Too Far Risk Taker Challenges ------------ None Game ------ Seed SupercompositeAluminumStorm Manual? 0 Play Time 00:26:11 Cumulative 0.9 hours Start 2024.03.31 @ 22:33:19 End 2024.03.31 @ 23:11:54 Sessions 2 Manual Loads 0 Difficulty Rogue Special Mode None Game No. 2 Rogue 2 Adventurer 0 Explorer 0 Win Type - Total 0 Types 0/0/0/0/0/0/0/0/0 Lore% 9 Gallery% 3 Achievement% 4 Wizard Run 0 Options --------- Layout 1 ASCII 0 Keyboard 0 Movement Mouse Keybinds 0 Fullscreen 1 Font 32/SmallcapsGlow Map View 50x40 Zoom Use 0% Tactical HUD 0 Map Filters NONE Filters NONE Steam 1 RUN: 6f146db0-11a5-440a-ba1b-44348001dca8